[Event "Titled Tuesday Blitz August 1 Late 2023"]
[White "Arnold, Ken"]
[Black "Ardito, Andrew"]
[WhiteFideId "2056836"]
[BlackFideId "2033976"]
[WhiteElo "2428"]
[BlackElo "2127"]
[Result "1-0"]
[Round "5"]
[TimeControl "180+1"]
[Date "2023.08.01"]
[WhiteClock "0:01:32"]
[BlackClock "0:00:55"]
[Board "121"]

1. d4 {[%clk 0:03:00]}  Nf6 {[%clk 0:03:00]} 2. c4 {[%clk 0:03:00]}  d6 {[%clk 0:02:59]} 3. Nc3 {[%clk 0:03:00]}  c6 {[%clk 0:02:57]} 4. f3 {[%clk 0:02:59]}  g6 {[%clk 0:02:56]} 5. e4 {[%clk 0:02:59]}  Bg7 {[%clk 0:02:57]} 6. Be3 {[%clk 0:02:59]}  O-O {[%clk 0:02:56]} 7. Qd2 {[%clk 0:02:59]}  a6 {[%clk 0:02:54]} 8. Nge2 {[%clk 0:02:59]}  b5 {[%clk 0:02:54]} 9. Ng3 {[%clk 0:02:54]}  e5 {[%clk 0:02:50]} 10. d5 {[%clk 0:02:52]}  bxc4 {[%clk 0:02:49]} 11. Bxc4 {[%clk 0:02:51]}  cxd5 {[%clk 0:02:50]} 12. Bxd5 {[%clk 0:02:45]}  Nxd5 {[%clk 0:02:46]} 13. Qxd5 {[%clk 0:02:34]}  Be6 {[%clk 0:01:51]} 14. Qxa8 {[%clk 0:02:32]}  Qa5 {[%clk 0:01:51]} 15. O-O {[%clk 0:02:26]}  f5 {[%clk 0:01:40]} 16. Qa7 {[%clk 0:02:12]}  f4 {[%clk 0:01:36]} 17. Bb6 {[%clk 0:02:12]}  Qb4 {[%clk 0:01:31]} 18. Nge2 {[%clk 0:02:11]}  Nc6 {[%clk 0:01:26]} 19. a3 {[%clk 0:01:44]}  Qxb2 {[%clk 0:01:21]} 20. Qxa6 {[%clk 0:01:38]}  Bc8 {[%clk 0:01:01]} 21. Qb5 {[%clk 0:01:36]}  Qxb5 {[%clk 0:01:00]} 22. Nxb5 {[%clk 0:01:35]}  Ba6 {[%clk 0:01:01]} 23. a4 {[%clk 0:01:33]}  Rb8 {[%clk 0:01:01]} 24. Bc7 {[%clk 0:01:33]}  Rb7 {[%clk 0:00:55]} 25. Bxd6 {[%clk 0:01:32]} 1-0


[Site "https://www.chess.com"]

[Event "Titled Tuesday Blitz August 1 Late 2023"]
[White "Curtis, John"]
[Black "Nikolova, Adriana"]
[WhiteFideId "3200256"]
[BlackFideId "2908689"]
[WhiteElo "2094"]
[BlackElo "2421"]
[Result "0-1"]
[Round "5"]
[TimeControl "180+1"]
[Date "2023.08.01"]
[WhiteClock "0:00:00"]
[BlackClock "0:00:12"]
[Board "122"]

1. e4 {[%clk 0:02:58]}  c5 {[%clk 0:02:58]} 2. Nf3 {[%clk 0:02:57]}  Nc6 {[%clk 0:02:59]} 3. Bb5 {[%clk 0:02:50]}  d6 {[%clk 0:02:58]} 4. d4 {[%clk 0:02:47]}  cxd4 {[%clk 0:02:57]} 5. Nxd4 {[%clk 0:02:47]}  Bd7 {[%clk 0:02:57]} 6. c4 {[%clk 0:02:46]}  Nf6 {[%clk 0:02:56]} 7. Nc3 {[%clk 0:02:45]}  g6 {[%clk 0:02:56]} 8. f3 {[%clk 0:02:42]}  Bg7 {[%clk 0:02:56]} 9. Be3 {[%clk 0:02:40]}  O-O {[%clk 0:02:55]} 10. Bxc6 {[%clk 0:02:40]}  bxc6 {[%clk 0:02:51]} 11. Qd2 {[%clk 0:02:40]}  Qa5 {[%clk 0:02:44]} 12. O-O {[%clk 0:02:31]}  Rfc8 {[%clk 0:02:35]} 13. Rfd1 {[%clk 0:02:26]}  Qh5 {[%clk 0:02:35]} 14. Rac1 {[%clk 0:02:14]}  Rab8 {[%clk 0:02:26]} 15. b3 {[%clk 0:02:13]}  a5 {[%clk 0:02:24]} 16. Nde2 {[%clk 0:02:07]}  Ra8 {[%clk 0:02:15]} 17. Na4 {[%clk 0:01:56]}  Rc7 {[%clk 0:02:06]} 18. Nb6 {[%clk 0:01:50]}  Ra6 {[%clk 0:02:00]} 19. Nf4 {[%clk 0:01:48]}  Qe5 {[%clk 0:01:53]} 20. Nd3 {[%clk 0:01:24]}  Qh5 {[%clk 0:01:45]} 21. Nf4 {[%clk 0:01:24]}  Qe5 {[%clk 0:01:30]} 22. c5 {[%clk 0:01:11]}  dxc5 {[%clk 0:01:09]} 23. Nc4 {[%clk 0:00:38]}  Nxe4 {[%clk 0:00:56]} 24. Nxe5 {[%clk 0:00:24]}  Nxd2 {[%clk 0:00:53]} 25. Nxd7 {[%clk 0:00:22]}  Rxd7 {[%clk 0:00:42]} 26. Rxd2 {[%clk 0:00:22]}  Rxd2 {[%clk 0:00:40]} 27. Bxd2 {[%clk 0:00:22]}  a4 {[%clk 0:00:39]} 28. Be3 {[%clk 0:00:19]}  axb3 {[%clk 0:00:37]} 29. axb3 {[%clk 0:00:19]}  Ra3 {[%clk 0:00:37]} 30. Bxc5 {[%clk 0:00:17]}  Rxb3 {[%clk 0:00:37]} 31. Bxe7 {[%clk 0:00:16]}  Bd4+ {[%clk 0:00:34]} 32. Kf1 {[%clk 0:00:16]}  Be3 {[%clk 0:00:34]} 33. Rd1 {[%clk 0:00:13]}  Bxf4 {[%clk 0:00:26]} 34. g3 {[%clk 0:00:10]}  Be5 {[%clk 0:00:24]} 35. Rd8+ {[%clk 0:00:08]}  Kg7 {[%clk 0:00:24]} 36. f4 {[%clk 0:00:08]}  Rb1+ {[%clk 0:00:22]} 37. Ke2 {[%clk 0:00:07]}  Bc7 {[%clk 0:00:14]} 38. Rc8 {[%clk 0:00:00]}  Rb7 {[%clk 0:00:12]} 0-1


[Site "https://www.chess.com"]

[Event "Titled Tuesday Blitz August 1 Late 2023"]
[White "Penagalapati, Abhinav"]
[Black "ElenGajger"]
[WhiteFideId "30938210"]
[WhiteElo "2116"]
[BlackElo "2551"]
[Result "1-0"]
[Round "5"]
[TimeControl "180+1"]
[Date "2023.08.01"]
[WhiteClock "0:01:25"]
[BlackClock "0:00:44"]
[Board "123"]

1. d4 {[%clk 0:03:00]}  Nf6 {[%clk 0:02:58]} 2. Nc3 {[%clk 0:03:01]}  d5 {[%clk 0:02:58]} 3. Bf4 {[%clk 0:03:01]}  g6 {[%clk 0:02:58]} 4. e3 {[%clk 0:02:58]}  Bg7 {[%clk 0:02:58]} 5. h4 {[%clk 0:02:59]}  c5 {[%clk 0:02:56]} 6. Nb5 {[%clk 0:02:58]}  Na6 {[%clk 0:02:55]} 7. c3 {[%clk 0:02:57]}  h6 {[%clk 0:02:49]} 8. Nf3 {[%clk 0:02:57]}  Bg4 {[%clk 0:02:45]} 9. Be2 {[%clk 0:02:57]}  Nh5 {[%clk 0:02:35]} 10. Be5 {[%clk 0:02:34]}  Bxf3 {[%clk 0:02:30]} 11. Bxf3 {[%clk 0:02:31]}  Qd7 {[%clk 0:02:24]} 12. a4 {[%clk 0:02:29]}  Nf6 {[%clk 0:02:16]} 13. Qe2 {[%clk 0:02:23]}  O-O {[%clk 0:02:11]} 14. O-O {[%clk 0:02:22]}  Ne4 {[%clk 0:01:58]} 15. Bh2 {[%clk 0:02:12]}  e6 {[%clk 0:01:43]} 16. Rfd1 {[%clk 0:02:10]}  Qe7 {[%clk 0:01:39]} 17. Bxe4 {[%clk 0:02:05]}  dxe4 {[%clk 0:01:39]} 18. Bd6 {[%clk 0:02:05]}  Qxh4 {[%clk 0:01:39]} 19. Bxf8 {[%clk 0:02:04]}  Bxf8 {[%clk 0:01:38]} 20. g3 {[%clk 0:02:04]}  Qg5 {[%clk 0:01:37]} 21. Kg2 {[%clk 0:02:00]}  cxd4 {[%clk 0:01:24]} 22. cxd4 {[%clk 0:01:54]}  Rd8 {[%clk 0:01:24]} 23. Rac1 {[%clk 0:01:52]}  Rd5 {[%clk 0:01:17]} 24. Rc8 {[%clk 0:01:46]}  Kg7 {[%clk 0:01:15]} 25. Nc3 {[%clk 0:01:46]}  Rf5 {[%clk 0:01:05]} 26. Nxe4 {[%clk 0:01:45]}  Qe7 {[%clk 0:01:04]} 27. Rdc1 {[%clk 0:01:43]}  h5 {[%clk 0:00:57]} 28. Ra8 {[%clk 0:01:33]}  Nb4 {[%clk 0:00:55]} 29. Rcc8 {[%clk 0:01:32]}  Qd7 {[%clk 0:00:43]} 30. Rxf8 {[%clk 0:01:25]}  Qc6 {[%clk 0:00:43]} 31. Rg8+ {[%clk 0:01:24]}  Kh6 {[%clk 0:00:43]} 32. Rh8+ {[%clk 0:01:25]}  Kg7 {[%clk 0:00:44]} 33. Rag8# {[%clk 0:01:25]} 1-0


[Site "https://www.chess.com"]

[Event "Titled Tuesday Blitz August 1 Late 2023"]
[White "Harshal, Shahi"]
[Black "Altman, Joshua"]
[WhiteFideId "5048257"]
[BlackFideId "426210"]
[WhiteElo "2328"]
[BlackElo "2509"]
[Result "0-1"]
[Round "5"]
[TimeControl "180+1"]
[Date "2023.08.01"]
[WhiteClock "0:00:00"]
[BlackClock "0:00:56"]
[Board "124"]

1. e4 {[%clk 0:03:00]}  Nc6 {[%clk 0:02:59]} 2. d4 {[%clk 0:02:59]}  d5 {[%clk 0:02:59]} 3. e5 {[%clk 0:02:58]}  Bf5 {[%clk 0:02:59]} 4. c3 {[%clk 0:02:56]}  e6 {[%clk 0:02:58]} 5. Bd3 {[%clk 0:02:53]}  Nge7 {[%clk 0:02:58]} 6. Ne2 {[%clk 0:02:52]}  Qd7 {[%clk 0:02:57]} 7. b4 {[%clk 0:02:49]}  Bxd3 {[%clk 0:02:52]} 8. Qxd3 {[%clk 0:02:50]}  Ng6 {[%clk 0:02:52]} 9. a4 {[%clk 0:02:47]}  f6 {[%clk 0:02:49]} 10. f4 {[%clk 0:02:46]}  fxe5 {[%clk 0:02:45]} 11. fxe5 {[%clk 0:02:46]}  Be7 {[%clk 0:02:43]} 12. O-O {[%clk 0:02:46]}  O-O-O {[%clk 0:02:42]} 13. Be3 {[%clk 0:02:21]}  Rdf8 {[%clk 0:02:35]} 14. Nd2 {[%clk 0:02:21]}  Nh4 {[%clk 0:02:34]} 15. a5 {[%clk 0:02:18]}  Nf5 {[%clk 0:02:30]} 16. b5 {[%clk 0:02:08]}  Nd8 {[%clk 0:02:28]} 17. b6 {[%clk 0:02:08]}  cxb6 {[%clk 0:02:22]} 18. axb6 {[%clk 0:02:09]}  a6 {[%clk 0:02:23]} 19. Rfc1 {[%clk 0:01:52]}  Kb8 {[%clk 0:02:19]} 20. c4 {[%clk 0:01:46]}  Nc6 {[%clk 0:02:14]} 21. Bf2 {[%clk 0:01:28]}  dxc4 {[%clk 0:02:05]} 22. Rxc4 {[%clk 0:01:24]}  Nxe5 {[%clk 0:02:03]} 23. Rc7 {[%clk 0:01:18]}  Nxd3 {[%clk 0:01:58]} 24. Rxd7 {[%clk 0:01:17]}  Nxf2 {[%clk 0:01:57]} 25. Kxf2 {[%clk 0:00:54]}  Nxd4+ {[%clk 0:01:56]} 26. Nf3 {[%clk 0:00:48]}  Nxf3 {[%clk 0:01:52]} 27. gxf3 {[%clk 0:00:49]}  Bc5+ {[%clk 0:01:51]} 28. Kg2 {[%clk 0:00:42]}  Bxb6 {[%clk 0:01:51]} 29. Rb1 {[%clk 0:00:40]}  Ka7 {[%clk 0:01:50]} 30. Rd6 {[%clk 0:00:31]}  Bc5 {[%clk 0:01:40]} 31. Rd7 {[%clk 0:00:30]}  Rb8 {[%clk 0:01:38]} 32. Rxg7 {[%clk 0:00:17]}  Rhg8 {[%clk 0:01:26]} 33. Rxb7+ {[%clk 0:00:17]}  Rxb7 {[%clk 0:01:27]} 34. Rxg8 {[%clk 0:00:17]}  a5 {[%clk 0:01:26]} 35. Nc3 {[%clk 0:00:15]}  Bd4 {[%clk 0:01:23]} 36. Ne4 {[%clk 0:00:13]}  Rg7+ {[%clk 0:01:22]} 37. Rxg7+ {[%clk 0:00:12]}  Bxg7 {[%clk 0:01:23]} 38. Nc5 {[%clk 0:00:11]}  e5 {[%clk 0:01:02]} 39. Ne4 {[%clk 0:00:11]}  Kb6 {[%clk 0:00:59]} 40. Kg3 {[%clk 0:00:10]}  a4 {[%clk 0:00:59]} 41. Kg4 {[%clk 0:00:09]}  Kb5 {[%clk 0:00:58]} 42. Kf5 {[%clk 0:00:07]}  a3 {[%clk 0:00:58]} 43. Nc3+ {[%clk 0:00:06]}  Kc4 {[%clk 0:00:57]} 44. Na2 {[%clk 0:00:05]}  Kb3 {[%clk 0:00:56]} 45. Nc1+ {[%clk 0:00:06]}  Kb2 {[%clk 0:00:56]} 46. Nd3+ {[%clk 0:00:06]}  Kc3 {[%clk 0:00:56]} 47. Nc1 {[%clk 0:00:06]}  Bh6 {[%clk 0:00:56]} 48. Na2+ {[%clk 0:00:05]}  Kb3 {[%clk 0:00:56]} 49. Kxe5 {[%clk 0:00:04]}  Kxa2 {[%clk 0:00:56]} 50. f4 {[%clk 0:00:04]}  Kb2 {[%clk 0:00:56]} 51. f5 {[%clk 0:00:05]}  a2 {[%clk 0:00:56]} 52. f6 {[%clk 0:00:06]}  a1=Q {[%clk 0:00:57]} 53. f7 {[%clk 0:00:00]}  Qe1+ {[%clk 0:00:56]} 0-1


[Site "https://www.chess.com"]

[Event "Titled Tuesday Blitz August 1 Late 2023"]
[White "Hoffmann, Asa"]
[Black "Liu, Casper"]
[WhiteFideId "2001470"]
[BlackFideId "1454153"]
[WhiteElo "2314"]
[BlackElo "2462"]
[Result "0-1"]
[Round "5"]
[TimeControl "180+1"]
[Date "2023.08.01"]
[WhiteClock "0:00:00"]
[BlackClock "0:00:54"]
[Board "127"]

1. d4 {[%clk 0:02:24]}  Nf6 {[%clk 0:02:58]} 2. Bg5 {[%clk 0:02:23]}  g6 {[%clk 0:02:58]} 3. Nc3 {[%clk 0:02:22]}  Bg7 {[%clk 0:02:59]} 4. e4 {[%clk 0:02:22]}  O-O {[%clk 0:03:00]} 5. f3 {[%clk 0:02:22]}  c5 {[%clk 0:02:59]} 6. dxc5 {[%clk 0:02:21]}  Qa5 {[%clk 0:03:00]} 7. Be3 {[%clk 0:02:18]}  Na6 {[%clk 0:03:00]} 8. a3 {[%clk 0:02:16]}  Nh5 {[%clk 0:02:52]} 9. Qd2 {[%clk 0:02:08]}  d6 {[%clk 0:02:26]} 10. cxd6 {[%clk 0:02:04]}  exd6 {[%clk 0:02:26]} 11. Bxa6 {[%clk 0:01:53]}  bxa6 {[%clk 0:02:23]} 12. Nge2 {[%clk 0:01:53]}  Rb8 {[%clk 0:02:21]} 13. Rb1 {[%clk 0:01:31]}  Be6 {[%clk 0:02:19]} 14. O-O {[%clk 0:01:30]}  Rfc8 {[%clk 0:02:16]} 15. Bd4 {[%clk 0:01:25]}  Bc4 {[%clk 0:02:10]} 16. Bxg7 {[%clk 0:01:23]}  Kxg7 {[%clk 0:02:11]} 17. Rfd1 {[%clk 0:01:20]}  Qc5+ {[%clk 0:02:02]} 18. Qd4+ {[%clk 0:01:14]}  Qxd4+ {[%clk 0:02:02]} 19. Nxd4 {[%clk 0:01:11]}  Nf4 {[%clk 0:02:02]} 20. Kf2 {[%clk 0:01:10]}  h5 {[%clk 0:01:49]} 21. g3 {[%clk 0:01:09]}  Ne6 {[%clk 0:01:49]} 22. Nxe6+ {[%clk 0:01:09]}  Bxe6 {[%clk 0:01:50]} 23. Ke2 {[%clk 0:00:59]}  h4 {[%clk 0:01:50]} 24. Kd2 {[%clk 0:00:58]}  hxg3 {[%clk 0:01:49]} 25. hxg3 {[%clk 0:00:58]}  Rh8 {[%clk 0:01:48]} 26. Re1 {[%clk 0:00:44]}  Bc4 {[%clk 0:01:45]} 27. b3 {[%clk 0:00:38]}  Rh2+ {[%clk 0:01:43]} 28. Ne2 {[%clk 0:00:31]}  Be6 {[%clk 0:01:34]} 29. Rh1 {[%clk 0:00:28]}  Rf2 {[%clk 0:01:34]} 30. Rbf1 {[%clk 0:00:28]}  Rg2 {[%clk 0:01:34]} 31. f4 {[%clk 0:00:26]}  Bg4 {[%clk 0:01:33]} 32. Re1 {[%clk 0:00:25]}  Bf3 {[%clk 0:01:22]} 33. Rhg1 {[%clk 0:00:21]}  Bxe4 {[%clk 0:01:12]} 34. Rxg2 {[%clk 0:00:20]}  Bxg2 {[%clk 0:01:13]} 35. Nd4 {[%clk 0:00:19]}  d5 {[%clk 0:01:06]} 36. Re2 {[%clk 0:00:17]}  Be4 {[%clk 0:01:07]} 37. b4 {[%clk 0:00:15]}  Kf6 {[%clk 0:01:04]} 38. c3 {[%clk 0:00:15]}  Rh8 {[%clk 0:01:05]} 39. Nb3 {[%clk 0:00:14]}  Rh3 {[%clk 0:01:05]} 40. Nc5 {[%clk 0:00:13]}  Kf5 {[%clk 0:00:58]} 41. Nxe4 {[%clk 0:00:11]}  dxe4 {[%clk 0:00:58]} 42. c4 {[%clk 0:00:11]}  Rxg3 {[%clk 0:00:58]} 43. c5 {[%clk 0:00:11]}  Rxa3 {[%clk 0:00:56]} 44. c6 {[%clk 0:00:11]}  Ra2+ {[%clk 0:00:52]} 45. Ke3 {[%clk 0:00:11]}  Rxe2+ {[%clk 0:00:53]} 46. Kxe2 {[%clk 0:00:11]}  Ke6 {[%clk 0:00:53]} 47. Ke3 {[%clk 0:00:09]}  f5 {[%clk 0:00:54]} 48. Kd4 {[%clk 0:00:00]}  Kd6 {[%clk 0:00:54]} 0-1


[Site "https://www.chess.com"]

[Event "Titled Tuesday Blitz August 1 Late 2023"]
[White "Salazar Farias, Luis German"]
[Black "Stanisz, Patryk"]
[WhiteFideId "3902170"]
[BlackFideId "1123106"]
[WhiteElo "2454"]
[BlackElo "2302"]
[Result "1-0"]
[Round "5"]
[TimeControl "180+1"]
[Date "2023.08.01"]
[WhiteClock "0:00:10"]
[BlackClock "0:00:58"]
[Board "130"]

1. d4 {[%clk 0:02:54]}  d5 {[%clk 0:02:59]} 2. c4 {[%clk 0:02:55]}  c6 {[%clk 0:02:57]} 3. Nc3 {[%clk 0:02:54]}  Nf6 {[%clk 0:02:57]} 4. e3 {[%clk 0:02:53]}  e6 {[%clk 0:02:55]} 5. Nf3 {[%clk 0:02:50]}  Nbd7 {[%clk 0:02:55]} 6. Bd3 {[%clk 0:02:49]}  dxc4 {[%clk 0:02:50]} 7. Bxc4 {[%clk 0:02:50]}  b5 {[%clk 0:02:51]} 8. Bd3 {[%clk 0:02:47]}  b4 {[%clk 0:02:52]} 9. Ne4 {[%clk 0:02:36]}  c5 {[%clk 0:02:51]} 10. Nxf6+ {[%clk 0:02:31]}  gxf6 {[%clk 0:02:51]} 11. Be4 {[%clk 0:02:14]}  Rb8 {[%clk 0:02:46]} 12. O-O {[%clk 0:02:11]}  f5 {[%clk 0:02:46]} 13. Bc6 {[%clk 0:02:10]}  Bb7 {[%clk 0:02:45]} 14. Bxb7 {[%clk 0:01:35]}  Rxb7 {[%clk 0:02:45]} 15. d5 {[%clk 0:01:32]}  Nb6 {[%clk 0:02:36]} 16. dxe6 {[%clk 0:01:24]}  fxe6 {[%clk 0:02:37]} 17. Qxd8+ {[%clk 0:01:17]}  Kxd8 {[%clk 0:02:37]} 18. e4 {[%clk 0:01:17]}  Bg7 {[%clk 0:02:24]} 19. Be3 {[%clk 0:00:49]}  Bxb2 {[%clk 0:02:11]} 20. Rad1+ {[%clk 0:00:49]}  Kc8 {[%clk 0:01:57]} 21. Bxc5 {[%clk 0:00:47]}  Bc3 {[%clk 0:01:53]} 22. exf5 {[%clk 0:00:41]}  exf5 {[%clk 0:01:51]} 23. Bd4 {[%clk 0:00:41]}  Rd8 {[%clk 0:01:47]} 24. Rc1 {[%clk 0:00:17]}  Rc7 {[%clk 0:01:46]} 25. Bxb6 {[%clk 0:00:15]}  axb6 {[%clk 0:01:47]} 26. Rc2 {[%clk 0:00:12]}  Kb8 {[%clk 0:01:45]} 27. g3 {[%clk 0:00:12]}  f4 {[%clk 0:01:41]} 28. Kg2 {[%clk 0:00:11]}  fxg3 {[%clk 0:01:37]} 29. hxg3 {[%clk 0:00:12]}  Ra7 {[%clk 0:01:16]} 30. Rb1 {[%clk 0:00:07]}  Kc7 {[%clk 0:01:10]} 31. Rxb4 {[%clk 0:00:06]}  Rd3 {[%clk 0:01:09]} 32. Rc4+ {[%clk 0:00:06]}  Kd6 {[%clk 0:01:06]} 33. R4xc3 {[%clk 0:00:07]}  Rxc3 {[%clk 0:01:05]} 34. Rxc3 {[%clk 0:00:08]}  Rxa2 {[%clk 0:01:06]} 35. Rb3 {[%clk 0:00:06]}  Kc5 {[%clk 0:01:05]} 36. Re3 {[%clk 0:00:06]}  b5 {[%clk 0:01:05]} 37. Re5+ {[%clk 0:00:06]}  Kc4 {[%clk 0:01:02]} 38. Re4+ {[%clk 0:00:06]}  Kc5 {[%clk 0:01:02]} 39. Re5+ {[%clk 0:00:06]}  Kc4 {[%clk 0:01:02]} 40. Re7 {[%clk 0:00:06]}  b4 {[%clk 0:01:02]} 41. Rxh7 {[%clk 0:00:06]}  Ra5 {[%clk 0:01:01]} 42. Rc7+ {[%clk 0:00:06]}  Rc5 {[%clk 0:00:59]} 43. Rxc5+ {[%clk 0:00:05]}  Kxc5 {[%clk 0:00:59]} 44. Kf1 {[%clk 0:00:05]}  b3 {[%clk 0:00:54]} 45. Nd2 {[%clk 0:00:06]}  b2 {[%clk 0:00:54]} 46. Ke2 {[%clk 0:00:07]}  Kb4 {[%clk 0:00:54]} 47. g4 {[%clk 0:00:07]}  Kc5 {[%clk 0:00:53]} 48. g5 {[%clk 0:00:07]}  Kd6 {[%clk 0:00:54]} 49. f4 {[%clk 0:00:07]}  Ke7 {[%clk 0:00:54]} 50. Kd1 {[%clk 0:00:07]}  Kf8 {[%clk 0:00:55]} 51. Kc2 {[%clk 0:00:08]}  Kf7 {[%clk 0:00:56]} 52. Kxb2 {[%clk 0:00:08]}  Ke6 {[%clk 0:00:57]} 53. Nf1 {[%clk 0:00:07]}  Kf5 {[%clk 0:00:57]} 54. Ng3+ {[%clk 0:00:08]}  Kg6 {[%clk 0:00:57]} 55. Ne2 {[%clk 0:00:08]}  Kf7 {[%clk 0:00:58]} 56. Kc3 {[%clk 0:00:09]}  Ke6 {[%clk 0:00:59]} 57. Kd3 {[%clk 0:00:10]}  Kf5 {[%clk 0:00:58]} 58. Ke3 {[%clk 0:00:10]} 1-0


[Site "https://www.chess.com"]

[Event "Titled Tuesday Blitz August 1 Late 2023"]
[White "Garcia de Dios, Jose Antonio"]
[Black "Miguelitro69"]
[WhiteFideId "5128919"]
[WhiteElo "2448"]
[BlackElo "2296"]
[Result "1-0"]
[Round "5"]
[TimeControl "180+1"]
[Date "2023.08.01"]
[WhiteClock "0:01:42"]
[BlackClock "0:00:16"]
[Board "131"]

1. d4 {[%clk 0:02:42]}  d5 {[%clk 0:02:54]} 2. Bf4 {[%clk 0:02:42]}  Nf6 {[%clk 0:02:53]} 3. e3 {[%clk 0:02:43]}  g6 {[%clk 0:02:53]} 4. Nf3 {[%clk 0:02:43]}  Bg7 {[%clk 0:02:54]} 5. h3 {[%clk 0:02:44]}  O-O {[%clk 0:02:54]} 6. Be2 {[%clk 0:02:45]}  c6 {[%clk 0:02:54]} 7. O-O {[%clk 0:02:46]}  Nbd7 {[%clk 0:02:54]} 8. c4 {[%clk 0:02:45]}  e6 {[%clk 0:02:53]} 9. Nc3 {[%clk 0:02:46]}  Re8 {[%clk 0:02:53]} 10. Qc2 {[%clk 0:02:46]}  Nh5 {[%clk 0:02:52]} 11. Bh2 {[%clk 0:02:47]}  Nhf6 {[%clk 0:02:41]} 12. Rfe1 {[%clk 0:02:46]}  dxc4 {[%clk 0:02:39]} 13. Bxc4 {[%clk 0:02:46]}  b5 {[%clk 0:02:39]} 14. Bd3 {[%clk 0:02:43]}  Bb7 {[%clk 0:02:39]} 15. Rac1 {[%clk 0:02:35]}  a6 {[%clk 0:02:39]} 16. Ne5 {[%clk 0:02:33]}  c5 {[%clk 0:02:32]} 17. dxc5 {[%clk 0:02:29]}  Nxc5 {[%clk 0:02:29]} 18. Bf1 {[%clk 0:02:29]}  Rc8 {[%clk 0:02:26]} 19. Qb1 {[%clk 0:02:28]}  Nd5 {[%clk 0:02:09]} 20. Nxd5 {[%clk 0:02:26]}  Qxd5 {[%clk 0:02:08]} 21. Red1 {[%clk 0:02:24]}  Bxe5 {[%clk 0:01:35]} 22. Rxd5 {[%clk 0:02:23]}  Bxh2+ {[%clk 0:01:35]} 23. Kxh2 {[%clk 0:02:24]}  exd5 {[%clk 0:01:35]} 24. b3 {[%clk 0:02:15]}  Ne4 {[%clk 0:01:34]} 25. Kg1 {[%clk 0:02:11]}  Nc3 {[%clk 0:01:29]} 26. Qa1 {[%clk 0:02:10]}  b4 {[%clk 0:01:28]} 27. a3 {[%clk 0:02:09]}  a5 {[%clk 0:01:22]} 28. axb4 {[%clk 0:02:09]}  axb4 {[%clk 0:01:21]} 29. Qa7 {[%clk 0:02:01]}  Ne2+ {[%clk 0:01:19]} 30. Bxe2 {[%clk 0:02:02]}  Rxc1+ {[%clk 0:01:19]} 31. Kh2 {[%clk 0:02:02]}  Bc6 {[%clk 0:01:16]} 32. Qc7 {[%clk 0:01:56]}  d4 {[%clk 0:01:10]} 33. Bc4 {[%clk 0:01:50]}  Bd5 {[%clk 0:01:02]} 34. Qd7 {[%clk 0:01:46]}  Kf8 {[%clk 0:00:40]} 35. Bxd5 {[%clk 0:01:46]}  Re7 {[%clk 0:00:40]} 36. Qd8+ {[%clk 0:01:45]}  Re8 {[%clk 0:00:40]} 37. Qf6 {[%clk 0:01:45]}  Rc7 {[%clk 0:00:37]} 38. Qxd4 {[%clk 0:01:45]}  Rd8 {[%clk 0:00:36]} 39. Qxb4+ {[%clk 0:01:44]}  Kg7 {[%clk 0:00:36]} 40. Bc4 {[%clk 0:01:44]}  Rdd7 {[%clk 0:00:35]} 41. h4 {[%clk 0:01:44]}  h5 {[%clk 0:00:35]} 42. Qc3+ {[%clk 0:01:44]}  Kh7 {[%clk 0:00:34]} 43. Qf6 {[%clk 0:01:44]}  Rb7 {[%clk 0:00:34]} 44. f3 {[%clk 0:01:42]}  Ra7 {[%clk 0:00:32]} 45. e4 {[%clk 0:01:42]}  Ra2 {[%clk 0:00:31]} 46. e5 {[%clk 0:01:42]}  g5 {[%clk 0:00:19]} 47. Bxf7 {[%clk 0:01:42]}  g4 {[%clk 0:00:15]} 48. Qg6+ {[%clk 0:01:41]}  Kh8 {[%clk 0:00:16]} 49. Qg8# {[%clk 0:01:42]} 1-0


[Site "https://www.chess.com"]

[Event "Titled Tuesday Blitz August 1 Late 2023"]
[White "Jorajuria Mendoza, Algol"]
[Black "Clawitter, Craig"]
[WhiteFideId "5128897"]
[BlackFideId "2023105"]
[WhiteElo "2395"]
[BlackElo "2268"]
[Result "1-0"]
[Round "5"]
[TimeControl "180+1"]
[Date "2023.08.01"]
[WhiteClock "0:00:09"]
[BlackClock "0:00:13"]
[Board "138"]

1. e4 {[%clk 0:02:59]}  e6 {[%clk 0:02:59]} 2. d4 {[%clk 0:02:59]}  d5 {[%clk 0:02:58]} 3. Nd2 {[%clk 0:03:00]}  Be7 {[%clk 0:02:58]} 4. Ngf3 {[%clk 0:02:57]}  Nf6 {[%clk 0:02:58]} 5. e5 {[%clk 0:02:53]}  Nfd7 {[%clk 0:02:58]} 6. Bd3 {[%clk 0:02:53]}  c5 {[%clk 0:02:59]} 7. c3 {[%clk 0:02:54]}  Nc6 {[%clk 0:02:59]} 8. O-O {[%clk 0:02:51]}  a5 {[%clk 0:02:59]} 9. Re1 {[%clk 0:02:36]}  cxd4 {[%clk 0:02:56]} 10. cxd4 {[%clk 0:02:34]}  Qb6 {[%clk 0:02:55]} 11. Nb1 {[%clk 0:01:44]}  Nxd4 {[%clk 0:02:46]} 12. Nxd4 {[%clk 0:01:39]}  Qxd4 {[%clk 0:02:47]} 13. Nc3 {[%clk 0:01:12]}  Qb6 {[%clk 0:02:40]} 14. Qg4 {[%clk 0:01:07]}  g6 {[%clk 0:02:35]} 15. Nb5 {[%clk 0:00:55]}  O-O {[%clk 0:02:23]} 16. Bg5 {[%clk 0:00:49]}  Bxg5 {[%clk 0:02:05]} 17. Qxg5 {[%clk 0:00:50]}  Nc5 {[%clk 0:02:05]} 18. Bf1 {[%clk 0:00:36]}  Ne4 {[%clk 0:01:54]} 19. Rxe4 {[%clk 0:00:34]}  dxe4 {[%clk 0:01:53]} 20. Rd1 {[%clk 0:00:34]}  a4 {[%clk 0:01:22]} 21. h4 {[%clk 0:00:20]}  Ra5 {[%clk 0:01:12]} 22. h5 {[%clk 0:00:14]}  Rxb5 {[%clk 0:01:06]} 23. Qf6 {[%clk 0:00:13]}  gxh5 {[%clk 0:01:03]} 24. Qg5+ {[%clk 0:00:13]}  Kh8 {[%clk 0:01:02]} 25. Qf6+ {[%clk 0:00:13]}  Kg8 {[%clk 0:01:03]} 26. Bxb5 {[%clk 0:00:12]}  Qxb5 {[%clk 0:01:00]} 27. Re1 {[%clk 0:00:07]}  Qxb2 {[%clk 0:00:37]} 28. Re3 {[%clk 0:00:03]}  Qc1+ {[%clk 0:00:30]} 29. Kh2 {[%clk 0:00:03]}  Qxe3 {[%clk 0:00:30]} 30. fxe3 {[%clk 0:00:03]}  Bd7 {[%clk 0:00:30]} 31. Qg5+ {[%clk 0:00:03]}  Kh8 {[%clk 0:00:31]} 32. Qe7 {[%clk 0:00:04]}  Kg7 {[%clk 0:00:17]} 33. Qxd7 {[%clk 0:00:04]}  a3 {[%clk 0:00:16]} 34. Qxb7 {[%clk 0:00:05]}  Rd8 {[%clk 0:00:15]} 35. Qxe4 {[%clk 0:00:04]}  Rd2 {[%clk 0:00:15]} 36. Qc4 {[%clk 0:00:02]}  h4 {[%clk 0:00:12]} 37. Kh3 {[%clk 0:00:02]}  Kg6 {[%clk 0:00:10]} 38. Qb3 {[%clk 0:00:03]}  Kf5 {[%clk 0:00:08]} 39. Qxa3 {[%clk 0:00:03]}  Kxe5 {[%clk 0:00:07]} 40. Qc3+ {[%clk 0:00:03]}  Ke4 {[%clk 0:00:07]} 41. Qxd2 {[%clk 0:00:04]}  f5 {[%clk 0:00:07]} 42. a4 {[%clk 0:00:05]}  e5 {[%clk 0:00:07]} 43. a5 {[%clk 0:00:05]}  f4 {[%clk 0:00:08]} 44. exf4 {[%clk 0:00:06]}  exf4 {[%clk 0:00:08]} 45. Qxf4+ {[%clk 0:00:07]}  Kxf4 {[%clk 0:00:09]} 46. a6 {[%clk 0:00:08]}  h5 {[%clk 0:00:09]} 47. a7 {[%clk 0:00:08]}  Ke3 {[%clk 0:00:08]} 48. a8=Q {[%clk 0:00:09]}  Kf2 {[%clk 0:00:09]} 49. Qf3+ {[%clk 0:00:09]}  Kg1 {[%clk 0:00:10]} 50. Qxh5 {[%clk 0:00:09]}  Kh1 {[%clk 0:00:10]} 51. g3 {[%clk 0:00:08]}  Kg1 {[%clk 0:00:11]} 52. gxh4 {[%clk 0:00:09]}  Kh1 {[%clk 0:00:12]} 53. Qf3+ {[%clk 0:00:08]}  Kg1 {[%clk 0:00:13]} 54. Qg2# {[%clk 0:00:09]} 1-0


[Site "https://www.chess.com"]